fUST/lending_fUST_20240213
["ID","MTS","AMOUNT","RATE_DAILY","PERIOD"]
[313877587,1707766246197,-167.43465152,0.00021434,2]
[313877588,1707766246207,-155.22580866,0.00021434,2]
[313877589,1707766246216,-1859.09579688,0.00021434,2]
[313877590,1707766246226,-680.85802864,0.00021434,2]
[313877591,1707766246235,-1291.59702042,0.00021434,2]
[313877592,1707766246244,-155.3722912,0.00021435,2]
[313877596,1707766246345,-4858.39505092,0.00021435,2]
[313877598,1707766246355,-151.0,0.00021435,2]
[313877599,1707766246364,-151.0,0.00021435,2]
[313877600,1707766246373,-151.0,0.00021435,2]
[313877601,1707766246382,-151.0,0.00021435,2]
[313877602,1707766246390,-189.210203,0.00021435,2]
[313877603,1707766246399,-656.30612,0.00021435,2]
[313877604,1707766246408,-656.30612,0.00021435,2]
[313877606,1707766246417,-729.233714,0.00021435,2]
[313877608,1707766246426,-729.233714,0.00021435,2]
[313877609,1707766246434,-151.0,0.00021435,2]
[313877610,1707766246445,-151.0,0.00021435,2]
[313877611,1707766246454,-9146.12981001,0.00021436,2]
[313877612,1707766246513,-11698.75743114,0.00021436,2]
[313877613,1707766246526,-305.53024882,0.00021436,2]
[313877614,1707766246537,-526.0,0.00021436,2]
[313877636,1707766985691,813.71,0.00021014,30]
[313877702,1707767434586,-500.0,0.00017228,2]
[313877704,1707767434619,-261.26593856,0.00017228,2]
[313877706,1707767434629,-679.0873968,0.00017228,2]
[313877708,1707767434639,-907.00369426,0.00017229,2]
[313877710,1707767434648,-1835.74297038,0.00017229,2]
[313877712,1707767434659,-337.43736085,0.00017229,2]
[313877778,1707767442527,-247.4295258,0.00017227,2]
[313877779,1707767442537,-1820.62971936,0.00017229,2]
[313877780,1707767442547,-154.92253873,0.0001723,3]
[313877781,1707767442556,-1032.83143889,0.0001723,3]
[313877782,1707767442565,-156.70308559,0.0001723,2]
[313877783,1707767442574,-37093.81012526,0.0001723,2]
[313877784,1707767442583,-24900.0,0.00017233,2]
[313877785,1707767442593,-200.0,0.00018091,2]
[313877786,1707767442602,-189.65550368,0.00018135,2]
[313877787,1707767442611,-155.38693248,0.00018235,2]
[313877788,1707767442620,-2427.2228053,0.00018258,2]
[313877789,1707767442630,-545.381486,0.00018311,2]
[313877790,1707767442639,-168.984538,0.00019178,2]
[313877791,1707767442648,-754.48550122,0.00019334,2]
[313877792,1707767442657,-18313.96,0.0001989,3]
[313877793,1707767442666,-280.0,0.000199,2]
[313877794,1707767442676,-189.65550368,0.00020914,2]
[313877795,1707767442685,-1134.66227544,0.00020914,2]
[313877796,1707767442695,-155.1260716,0.00021,2]
[313877797,1707767442703,-214.22767024,0.00021013,2]
[313877799,1707767442712,-241.0175778,0.00021013,2]
[313877800,1707767442721,-500.0,0.00021013,2]
[313877801,1707767442730,-452.36988437,0.00021013,2]
[313877802,1707767442739,-250.0,0.00021013,2]
[313877803,1707767442748,-60693.04595306,0.00021014,2]
[313877804,1707767442764,-960.29100691,0.00021014,2]
[313877806,1707767442776,-223841.46548336,0.00021014,2]
[313877808,1707767442785,-10329.6905049,0.00021014,2]
[313877810,1707767442794,-684.648274,0.00021014,2]
[313877811,1707767442803,-154.92253873,0.00021014,2]
[313877812,1707767442812,-2092.52534233,0.00021014,2]
[313877813,1707767442822,-1833.12108864,0.00021014,2]
[313877815,1707767442831,-300.0,0.00021014,2]
[313877820,1707767442935,-50000.0,0.00021432,2]
[313877821,1707767442979,-151.0,0.00021432,2]
[313877822,1707767442989,-590.675508,0.00021432,2]
[313877823,1707767443003,-590.675508,0.00021432,2]
[313877824,1707767443014,-656.310343,0.00021432,2]
[313877825,1707767443024,-656.310343,0.00021432,2]
[313877826,1707767443034,-1297.90163565,0.00021434,2]
[313877827,1707767443043,-1859.09579688,0.00021434,2]
[313877828,1707767443053,-1433.62156316,0.00021434,2]
[313877829,1707767443062,-1740.98066961,0.00021434,2]
[313877830,1707767443072,-179.16544654,0.00021434,2]
[313877831,1707767443081,-9387.70501381,0.00021434,2]
[313877832,1707767443091,-166.28745497,0.00021434,2]
[313877833,1707767443100,-329.9343531,0.00021434,2]
[313877835,1707767443109,-624.58468682,0.00021435,2]
[313877837,1707767443119,-28323.58251003,0.00021436,2]
[313877839,1707767443128,-155.75146699,0.00021436,2]
[313877842,1707767443138,-276.390706,0.00021436,2]
[313877843,1707767443148,-156.32530538,0.00021436,2]
[313877846,1707767443161,-151.0,0.00021436,2]
[313877848,1707767443170,-154.365302,0.00021436,2]
[313877849,1707767443179,-151.0,0.00021436,2]
[313877850,1707767443189,-151.0,0.00021436,2]
[313877851,1707767443199,-269.429414,0.00021436,2]
[313877852,1707767443208,-590.675508,0.00021436,2]
[313877853,1707767443218,-590.675508,0.00021436,2]
[313877854,1707767443228,-656.310343,0.00021436,2]
[313877856,1707767443237,-656.310343,0.00021436,2]
[313877858,1707767443247,-300.17986929,0.00021461,2]
[313877860,1707767443256,-500.0,0.00021461,2]
[313877862,1707767443268,-283.03963141,0.00021461,2]
[313877864,1707767443277,-500.0,0.00021461,2]
[313877866,1707767443287,-500.0,0.00021461,2]
[313877868,1707767443297,-618.94084951,0.00021461,2]
[313877870,1707767443306,-500.0,0.00021461,2]
[313877872,1707767443315,-500.0,0.00021461,2]
[313877874,1707767443325,-627.37691104,0.00021461,2]
[313877876,1707767443334,-154.46495223,0.00021461,2]
[313877878,1707767443343,-630.64894658,0.00021461,2]
[313877881,1707767443353,-500.0,0.00021461,2]
[313877883,1707767443362,-260.0,0.00021461,2]
[313877885,1707767443372,-500.0,0.00021461,2]
[313877887,1707767443381,-500.0,0.00021461,2]
[313877889,1707767443391,-500.0,0.00021461,2]
[313877891,1707767443400,-531.96355852,0.00021461,2]
[313877893,1707767443409,-500.0,0.00021461,2]
[313877895,1707767443419,-500.0,0.00021461,2]
[313877897,1707767443428,-500.0,0.00021461,2]
[313877899,1707767443438,-500.0,0.00021461,2]
[313877901,1707767443447,-580.99289536,0.00021461,2]
[313877903,1707767443456,-574.58163655,0.00021461,2]
[313877905,1707767443465,-500.0,0.00021461,2]
[313877907,1707767443474,-500.0,0.00021461,2]
[313877909,1707767443483,-500.0,0.00021461,2]
[313877911,1707767443492,-500.0,0.00021461,2]
[313877913,1707767443502,-500.0,0.00021461,2]
[313877915,1707767443511,-500.0,0.00021461,2]
[313877917,1707767443523,-500.0,0.00021461,2]
[313877919,1707767443533,-500.0,0.00021461,2]
[313877921,1707767443542,-500.0,0.00021461,2]
[313877923,1707767443551,-384.91644244,0.00021461,2]
[313877925,1707767443560,-500.0,0.00021461,2]
[313877927,1707767443569,-500.0,0.00021461,2]
[313877929,1707767443579,-500.0,0.00021461,2]
[313877931,1707767443588,-500.0,0.00021461,2]
[313877933,1707767443597,-500.0,0.00021461,2]
[313877935,1707767443606,-500.0,0.00021461,2]
[313877937,1707767443615,-500.0,0.00021461,2]
[313877939,1707767443624,-161.26481229,0.00021461,2]
[313877941,1707767443633,-50000.0,0.00021462,2]
[313877943,1707767443642,-151.0,0.00021462,2]
[313877945,1707767443651,-151.0,0.00021462,2]
[313877947,1707767443661,-590.675508,0.00021462,2]
[313877949,1707767443670,-590.675508,0.00021462,2]
[313877951,1707767443679,-656.310343,0.00021462,2]
[313877953,1707767443689,-656.310343,0.00021462,2]
[313877955,1707767443699,-701.02560949,0.00021494,2]
[313877956,1707767443710,-232.62797295,0.00021494,2]
[313877958,1707767443720,-1962.74466832,0.00021494,2]
[313877960,1707767443729,-802.87141606,0.00021494,2]
[313877961,1707767443738,-1018.41805308,0.00021494,2]
[313877963,1707767443748,-324.28768484,0.00021494,2]
[313877965,1707767443757,-279.74496938,0.00021494,2]
[313877966,1707767443768,-155.12707126,0.00021494,2]
[313877967,1707767443777,-158.12303353,0.00021494,2]
[313877969,1707767443787,-459.3621972,0.00021494,2]
[313877971,1707767443797,-290.807846,0.00021494,2]
[313877973,1707767443806,-151.0,0.00021494,2]
[313877975,1707767443815,-1203.03430265,0.00021495,5]
[313877976,1707767443825,-1948.7295734,0.00021495,2]
[313877977,1707767443834,-172.62193479,0.00021495,2]
[313877978,1707767443844,-262.3113014,0.00021495,2]
[313877980,1707767443853,-151.0,0.00021539,2]
[313877981,1707767443865,-33024.89094476,0.00021546,2]
[313877986,1707767443922,-19151.79310339,0.00017228,2]
[313877987,1707767443932,-16975.10905524,0.00021546,2]
[313877989,1707767443943,-151.0,0.00021546,2]
[313877991,1707767443954,-151.0,0.00021546,2]
[313877993,1707767443964,-13556.94347439,0.00021546,2]
[313877995,1707767443976,-2136.51145348,0.00021546,2]
[313877996,1707767443987,-18962.82149999,0.00021546,2]
[313877997,1707767443998,-13753.42917953,0.00021546,2]
[313877998,1707767444010,-1590.29439261,0.00021546,2]
[313877999,1707767444020,-546.43019231,0.00021546,2]
[313878000,1707767444039,-44.24531569,0.00021546,2]
[313878001,1707767444048,-590.675508,0.00021546,2]
[313878002,1707767444057,-590.675508,0.00021546,2]
[313878003,1707767444066,-590.675508,0.00021546,2]
[313878004,1707767444075,-656.310343,0.00021546,2]
[313878005,1707767444084,-656.310343,0.00021546,2]
[313878006,1707767444093,-656.310343,0.00021546,2]
[313878007,1707767444102,-656.310343,0.00021546,2]
[313878008,1707767444112,-6743.73321219,0.00021598,2]
[313878009,1707767444121,-1006.12415203,0.0002166,2]
[313878010,1707767444130,-5000.0,0.0002166,2]
[313878011,1707767444139,-5000.0,0.0002166,2]
[313878012,1707767444148,-151.0,0.00021664,2]
[313878013,1707767444157,-151.0,0.00021664,2]
[313878014,1707767444167,-4741.79191816,0.00021665,2]
[313878015,1707767444176,-12757.71745275,0.00021665,2]
[313878016,1707767444185,-5000.0,0.00021665,2]
[313878017,1707767444194,-5000.0,0.00021665,2]
[313878018,1707767444203,-5143.23434239,0.00021665,2]
[313878019,1707767444212,-151.0,0.00021665,2]
[313878020,1707767444221,-151.0,0.00021665,2]
[313878021,1707767444230,-222.367056,0.00021665,2]
[313878022,1707767444239,-151.0,0.00021665,2]
[313878023,1707767444248,-151.0,0.00021665,2]
[313878024,1707767444259,-269.120619,0.00021665,2]
[313878025,1707767444268,-590.675508,0.00021665,2]
[313878026,1707767444278,-590.675508,0.00021665,2]
[313878027,1707767444287,-656.310343,0.00021665,2]
[313878028,1707767444296,-656.310343,0.00021665,2]
[313878029,1707767444305,-21059.38041744,0.0002167,2]
[313878030,1707767444314,-151.0,0.0002167,2]
[313878031,1707767444324,-590.675508,0.0002167,2]
[313878032,1707767444333,-590.675508,0.0002167,2]
[313878033,1707767444342,-656.310343,0.0002167,2]
[313878034,1707767444351,-656.310343,0.0002167,2]
[313878035,1707767444360,-5000.0,0.00021692,2]
[313878036,1707767444369,-500.0,0.00021698,2]
[313878037,1707767444378,-3247.04037998,0.000217,4]
[313878038,1707767444387,-18118.70152869,0.00021714,2]
[313878039,1707767444396,-5000.0,0.00021737,2]
[313878040,1707767444405,-391.0,0.0002189,7]
[313878041,1707767444414,-500.0,0.00021917,2]
[313878042,1707767444424,-500.0,0.00021917,2]
[313878043,1707767444434,-433.53081835,0.00021917,2]
[313878044,1707767444445,-590.675508,0.00021917,2]
[313878045,1707767444455,-590.675508,0.00021917,2]
[313878046,1707767444465,-656.310343,0.00021917,2]
[313878047,1707767444475,-656.310343,0.00021917,2]
[313878048,1707767444484,-50000.0,0.00021992,3]
[313878049,1707767444493,-170.843943,0.00021992,2]
[313878050,1707767444502,-590.675508,0.00021992,2]
[313878051,1707767444512,-590.675508,0.00021992,2]
[313878052,1707767444523,-656.310343,0.00021992,2]
[313878053,1707767444532,-656.310343,0.00021992,2]
[313878054,1707767444541,-326.73535811,0.00022,2]
[313878055,1707767444550,-427.63664462,0.00022,2]
[313878056,1707767444560,-916.26,0.00022,2]
[313878057,1707767444568,-1500.0,0.00022,2]
[313878058,1707767444578,-1500.0,0.00022,2]
[313878059,1707767444586,-1500.0,0.00022,2]
[313878060,1707767444595,-1500.0,0.00022,2]
[313878061,1707767444604,-1500.01,0.00022,2]
[313878062,1707767444613,-1500.0,0.00022,2]
[313878063,1707767444622,-1500.0,0.00022,2]
[313878064,1707767444631,-1500.0,0.00022,2]
[313878065,1707767444640,-1500.0,0.00022,2]
[313878066,1707767444649,-1500.0,0.00022,2]
[313878067,1707767444658,-1500.0,0.00022,2]
[313878068,1707767444668,-1500.0,0.00022,2]
[313878069,1707767444677,-1500.0,0.00022,2]
[313878070,1707767444688,-1500.0,0.00022,2]
[313878071,1707767444697,-1500.0,0.00022,2]
[313878072,1707767444707,-1500.0,0.00022,2]
[313878073,1707767444716,-1500.0,0.00022,2]
[313878074,1707767444725,-1500.0,0.00022,2]
[313878075,1707767444734,-1500.0,0.00022,2]
[313878076,1707767444743,-1500.0,0.00022,2]
[313878077,1707767444752,-444.28,0.00022,2]
[313878078,1707767444761,-1500.0,0.00022,2]
[313878079,1707767444772,-309.70578029,0.00022,2]
[313878080,1707767444781,-247.38920084,0.00022,4]
[313878081,1707767444790,-1000.0,0.00022,22]
[313878082,1707767444799,-590.675508,0.00022,2]
[313878083,1707767444808,-590.675517,0.00022,2]
[313878084,1707767444817,-656.310343,0.00022,2]
[313878085,1707767444826,-656.31033311,0.00022,2]
[313878086,1707767444836,-300.0,0.00022005,2]
[313878087,1707767444845,-1134.66227544,0.00022135,2]
[313878088,1707767444858,-107689.6190156,0.0002222,2]
[313878089,1707767444867,-2115.92035581,0.00022333,3]
[313878090,1707767444877,-205.71447904,0.00022333,3]
[313878091,1707767444886,-503.13506074,0.00022333,3]
[313878092,1707767444895,-188.54192326,0.00022333,3]
[313878093,1707767444904,-1000.0,0.00022333,3]
[313878094,1707767444913,-161.63207906,0.00022333,3]
[313878095,1707767444922,-1000.0,0.00022333,3]
[313878096,1707767444932,-647.6805547,0.00022333,3]
[313878097,1707767444941,-17823.98938624,0.00022333,3]
[313878098,1707767444950,-9069.01595522,0.00022333,3]
[313878099,1707767444959,-189.97804319,0.00022333,3]
[313878100,1707767444969,-1000.0,0.00022333,3]
[313878101,1707767444978,-750.0,0.00022383,2]
[313878102,1707767444986,-325.0,0.000224,10]
[313878103,1707767444996,-300.0,0.00022466,2]
[313878104,1707767445005,-704.0,0.000227,2]
[313878105,1707767445015,-300.0,0.00022926,2]
[313878106,1707767445025,-9976.71224854,0.00023,2]
[313878107,1707767445036,-1264.21341125,0.00023,2]
[313878108,1707767445046,-1000.0,0.00023,23]
[313878109,1707767445056,-1000.0,0.00023068,2]
[313878110,1707767445066,-1000.0,0.00023337,3]
[313878111,1707767445075,-1134.66227544,0.00023355,2]
[313878112,1707767445084,-5000.0,0.00023359,2]
[313878113,1707767445093,-5000.0,0.00023363,2]
[313878114,1707767445103,-5000.0,0.00023371,2]
[313878115,1707767445114,-300.0,0.00023386,2]
[313878116,1707767445124,-878.0993172,0.00023408,2]
[313878117,1707767445134,-29680.33152701,0.00023619,5]
[313878118,1707767445143,-1000.0,0.0002374,3]
[313878119,1707767445152,-1000.0,0.00023746,3]
[313878120,1707767445162,-1250.0,0.00023753,2]
[313878121,1707767445172,-1000.0,0.0002379,3]
[313878122,1707767445181,-300.0,0.00023847,2]
[313878123,1707767445190,-325.0,0.000239,11]
[313878124,1707767445200,-309.7117813,0.00023924,2]
[313878125,1707767445209,-1000.0,0.00024,24]
[313878126,1707767445218,-3918.12632401,0.00024,2]
[313878127,1707767445228,-200.0,0.00024079,7]
[313878128,1707767445237,-348.0,0.00024079,7]
[313878129,1707767445246,-1000.0,0.00024155,3]
[313878130,1707767445256,-5000.0,0.0002422,2]
[313878131,1707767445265,-5000.0,0.00024222,2]
[313878132,1707767445274,-5000.0,0.00024222,2]
[313878133,1707767445286,-5000.0,0.00024238,2]
[313878134,1707767445295,-300.0,0.00024307,2]
[313878135,1707767445305,-754.48550122,0.00024334,2]
[313878136,1707767445314,-230.319825,0.00024415,2]
[313878137,1707767445323,-218.3658084,0.00024438,2]
[313878138,1707767445332,-1000.0,0.00024444,3]
[313878139,1707767445342,-1000.0,0.00024444,3]
[313878140,1707767445353,-1000.0,0.00024444,3]
[313878141,1707767445363,-500.55022621,0.0002447,5]
[313878142,1707767445372,-1645.87463789,0.00024519,3]
[313878143,1707767445382,-44444.0,0.00024557,2]
[313878144,1707767445391,-165.113362,0.00024558,2]
[313878145,1707767445401,-475.148669,0.00024558,2]
[313878146,1707767445411,-735.173038,0.00024558,2]
[313878147,1707767445420,-1000.0,0.00024563,3]
[313878148,1707767445430,-1134.66227544,0.00024576,2]
[313878149,1707767445439,-632.90496586,0.00024578,2]
[313878150,1707767445449,-294.68032616,0.00024656,2]
[313878151,1707767445459,-500.0,0.00024657,2]
[313878152,1707767445468,-395.40010648,0.00024657,2]
[313878153,1707767445478,-500.0,0.00024657,2]
[313878154,1707767445489,-501.07437968,0.00024657,2]
[313878155,1707767445499,-500.0,0.00024657,2]
[313878156,1707767445508,-500.0,0.00024657,2]
[313878157,1707767445518,-500.0,0.00024657,2]
[313878158,1707767445528,-358.09302202,0.00024657,2]
[313878159,1707767445537,-500.0,0.00024657,2]
[313878160,1707767445546,-500.0,0.00024657,2]
[313878161,1707767445555,-500.0,0.00024657,2]
[313878162,1707767445564,-500.0,0.00024657,2]
[313878163,1707767445573,-537.09784472,0.00024657,2]
[313878164,1707767445583,-500.0,0.00024657,2]
[313878165,1707767445592,-500.0,0.00024657,2]
[313878166,1707767445602,-500.0,0.00024657,2]
[313878167,1707767445700,-500.0,0.00024657,2]
[313878168,1707767445709,-500.0,0.00024657,2]
[313878169,1707767445718,-620.43479272,0.00024657,2]
[313878170,1707767445728,-500.0,0.00024657,2]
[313878171,1707767445737,-500.0,0.00024657,2]
[313878172,1707767445745,-500.0,0.00024657,2]
[313878173,1707767445754,-500.0,0.00024657,2]
[313878174,1707767445765,-500.0,0.00024657,2]
[313878175,1707767445774,-500.0,0.00024657,2]
[313878176,1707767445783,-500.0,0.00024657,2]
[313878177,1707767445792,-500.0,0.00024657,2]
[313878178,1707767445801,-500.0,0.00024657,2]
[313878179,1707767445810,-500.0,0.00024657,2]
[313878180,1707767445820,-528.29177901,0.00024657,2]
[313878181,1707767445829,-154.93834477,0.00024657,2]
[313878182,1707767445838,-500.0,0.00024657,2]
[313878183,1707767445848,-500.0,0.00024657,2]
[313878184,1707767445858,-503.17000276,0.00024657,2]
[313878185,1707767445868,-500.76047021,0.00024657,2]
[313878186,1707767445877,-500.0,0.00024657,2]
[313878187,1707767445886,-503.67043007,0.00024657,2]
[313878188,1707767445895,-500.0,0.00024657,2]
[313878189,1707767445907,-500.0,0.00024657,2]
[313878190,1707767445916,-500.0,0.00024657,2]
[313878191,1707767445925,-501.80395928,0.00024657,2]
[313878192,1707767445935,-500.97740222,0.00024657,2]
[313878193,1707767445945,-500.0,0.00024657,2]
[313878194,1707767445956,-501.30947151,0.00024657,2]
[313878195,1707767445965,-500.0,0.00024657,2]
[313878196,1707767445974,-4190.5,0.00024657,2]
[313878198,1707767445983,-500.0,0.00024657,2]
[313878199,1707767445991,-604.19049993,0.00024657,2]
[313878200,1707767446000,-220.21876738,0.00024657,2]
[313878201,1707767446010,-500.0,0.00024657,2]
[313878202,1707767446020,-500.0,0.00024657,2]
[313878203,1707767446030,-500.0,0.00024657,2]
[313878204,1707767446039,-500.0,0.00024657,2]
[313878205,1707767446049,-500.0,0.00024657,2]
[313878206,1707767446058,-500.0,0.00024657,2]
[313878207,1707767446067,-168.24978825,0.00024657,2]
[313878208,1707767446076,-500.0,0.00024657,2]
[313878209,1707767446086,-165.23131995,0.00024657,2]
[313878210,1707767446095,-517.07708047,0.00024657,2]
[313878211,1707767446104,-500.0,0.00024657,2]
[313878212,1707767446113,-500.0,0.00024657,2]
[313878213,1707767446122,-503.46281082,0.00024657,2]
[313878214,1707767446132,-533.87450385,0.00024657,2]
[313878215,1707767446141,-500.0,0.00024657,2]
[313878216,1707767446150,-157.89936963,0.00024657,2]
[313878217,1707767446160,-500.0,0.00024657,2]
[313878218,1707767446170,-1145.98,0.00024657,2]
[313878219,1707767446180,-500.0,0.00024657,2]
[313878220,1707767446189,-513.26007254,0.00024657,2]
[313878221,1707767446199,-509.61780737,0.00024657,2]
[313878222,1707767446209,-752.94,0.00024657,2]
[313878223,1707767446219,-500.0,0.00024657,2]
[313878224,1707767446229,-501.96076192,0.00024657,2]
[313878225,1707767446238,-1000.0,0.00024657,5]
[313878226,1707767446247,-500.0,0.00024657,2]
[313878227,1707767446256,-1139.82,0.00024657,2]
[313878228,1707767446265,-168.47470284,0.00024657,2]
[313878229,1707767446275,-500.0,0.00024657,2]
[313878230,1707767446284,-500.0,0.00024657,2]
[313878231,1707767446294,-500.0,0.00024657,2]
[313878232,1707767446303,-500.0,0.00024657,2]
[313878233,1707767446312,-500.0,0.00024657,2]
[313878234,1707767446321,-517.68030209,0.00024657,2]
[313878235,1707767446330,-548.77,0.00024657,2]
[313878236,1707767446339,-500.0,0.00024657,2]
[313878237,1707767446349,-370.20546785,0.00024657,2]
[313878238,1707767446358,-500.0,0.00024657,2]
[313878239,1707767446367,-397.33828932,0.00024657,2]
[313878240,1707767446377,-500.54203164,0.00024657,2]
[313878241,1707767446386,-501.1148631,0.00024657,2]
[313878242,1707767446396,-507.96705475,0.00024657,2]
[313878243,1707767446405,-500.0,0.00024657,2]
[313878244,1707767446415,-500.0,0.00024657,2]
[313878245,1707767446424,-500.0,0.00024657,2]
[313878246,1707767446434,-815.4,0.00024657,2]
[313878247,1707767446443,-501.06672261,0.00024657,2]
[313878248,1707767446452,-500.0,0.00024657,2]
[313878249,1707767446461,-384.87717674,0.00024657,2]
[313878250,1707767446470,-500.0,0.00024657,2]
[313878251,1707767446479,-351.21953576,0.00024657,2]
[313878252,1707767446487,-500.0,0.00024657,2]
[313878253,1707767446497,-500.0,0.00024657,2]
[313878254,1707767446506,-750.73,0.00024657,2]
[313878255,1707767446516,-500.0,0.00024657,2]
[313878256,1707767446525,-500.0,0.00024657,2]
[313878257,1707767446534,-500.0,0.00024657,2]
[313878258,1707767446543,-500.0,0.00024657,2]
[313878259,1707767446552,-776.46,0.00024657,2]
[313878260,1707767446561,-310.58762929,0.00024657,2]
[313878261,1707767446570,-500.0,0.00024657,2]
[313878262,1707767446580,-500.0,0.00024657,2]
[313878263,1707767446589,-1071.31,0.00024657,2]
[313878264,1707767446598,-500.58402905,0.00024657,2]
[313878265,1707767446607,-501.42662856,0.00024657,2]
[313878266,1707767446616,-500.0,0.00024657,2]
[313878267,1707767446624,-513.24906881,0.00024657,2]
[313878268,1707767446634,-500.0,0.00024657,2]
[313878269,1707767446643,-500.0,0.00024657,2]
[313878270,1707767446653,-681.89,0.00024657,2]
[313878271,1707767446662,-500.0,0.00024657,2]
[313878272,1707767446672,-500.0,0.00024657,2]
[313878273,1707767446680,-176.65827073,0.00024657,2]
[313878274,1707767446689,-500.0,0.00024657,2]
[313878275,1707767446698,-500.0,0.00024657,2]
[313878276,1707767446707,-504.9890649,0.00024657,2]
[313878277,1707767446717,-500.0,0.00024657,2]
[313878278,1707767446726,-500.0,0.00024657,2]
[313878279,1707767446735,-500.0,0.00024657,2]
[313878280,1707767446744,-500.0,0.00024657,2]
[313878281,1707767446753,-500.0,0.00024657,2]
[313878282,1707767446762,-857.73,0.00024657,2]
[313878283,1707767446773,-13316.36,0.00024657,2]
[313878284,1707767446782,-6539.82,0.00024657,2]
[313878285,1707767446792,-500.0,0.00024657,2]
[313878286,1707767446801,-502.82677952,0.00024657,2]
[313878287,1707767446812,-679.01,0.00024657,2]
[313878288,1707767446821,-500.0,0.00024657,2]
[313878289,1707767446831,-500.0,0.00024657,2]
[313878290,1707767446839,-504.55886256,0.00024657,2]
[313878291,1707767446850,-291.71035562,0.00024657,2]
[313878292,1707767446862,-500.0,0.00024657,2]
[313878293,1707767446871,-500.0,0.00024657,2]
[313878294,1707767446880,-500.0,0.00024657,2]
[313878295,1707767446890,-500.0,0.00024657,2]
[313878296,1707767446899,-500.0,0.00024657,2]
[313878297,1707767446908,-500.69680368,0.00024657,2]
[313878298,1707767446917,-500.0,0.00024657,2]
[313878299,1707767446925,-500.0,0.00024657,2]
[313878300,1707767446936,-1352.14,0.00024657,2]
[313878301,1707767446945,-500.0,0.00024657,2]
[313878302,1707767446954,-500.57362981,0.00024657,2]
[313878303,1707767446964,-500.0,0.00024657,2]
[313878304,1707767446973,-500.0,0.00024657,2]
[313878305,1707767446981,-260.85461635,0.00024657,2]
[313878306,1707767446990,-500.0,0.00024657,2]
[313878307,1707767446999,-500.0,0.00024657,2]
[313878308,1707767447008,-500.0,0.00024657,2]
[313878309,1707767447018,-500.0,0.00024657,2]
[313878310,1707767447027,-500.0,0.00024657,2]
[313878311,1707767447037,-500.0,0.00024657,2]
[313878312,1707767447046,-500.72671947,0.00024657,2]
[313878313,1707767447057,-500.0,0.00024657,2]
[313878314,1707767447066,-500.0,0.00024657,2]
[313878315,1707767447076,-500.0,0.00024657,2]
[313878316,1707767447085,-1113.6,0.00024657,2]
[313878317,1707767447094,-500.0,0.00024657,2]
[313878318,1707767447102,-500.0,0.00024657,2]
[313878319,1707767447112,-500.0,0.00024657,2]
[313878320,1707767447122,-500.0,0.00024657,2]
[313878321,1707767447131,-500.0,0.00024657,2]
[313878322,1707767447140,-500.0,0.00024657,2]
[313878323,1707767447149,-1390.72,0.00024657,2]
[313878324,1707767447158,-500.0,0.00024657,2]
[313878325,1707767447167,-660.39,0.00024657,2]
[313878326,1707767447177,-500.0,0.00024657,2]
[313878327,1707767447185,-528.33040437,0.00024657,2]
[313878328,1707767447194,-500.0,0.00024657,2]
[313878329,1707767447203,-500.0,0.00024657,2]
[313878330,1707767447213,-9702.55,0.00024657,2]
[313878331,1707767447222,-502.01184517,0.00024657,2]
[313878332,1707767447232,-543.25921146,0.00024657,2]
[313878333,1707767447241,-500.0,0.00024657,2]
[313878334,1707767447250,-500.0,0.00024657,2]